bitfinex-derivatives/quotes_BTCF0:USTF0_20250309
["timestamp","ask_amount","ask_price","bid_price","bid_amount"]
[1741533744453,0.1196774,83573.0,83572.0,0.2033588]
[1741533744661,0.1517774,83573.0,83572.0,0.08368]
[1741533745454,0.1517774,83573.0,83571.0,0.11420366]
[1741533745455,0.1196788,83572.0,83571.0,0.11420366]
[1741533745648,0.1196845,83568.0,83567.0,0.23491064]
[1741533746348,0.1196845,83568.0,83557.0,0.00072]
[1741533746551,0.1196888,83565.0,83556.0,0.3608]
[1741533746752,0.2034088,83565.0,83556.0,0.4805004]
[1741533746960,0.2034088,83565.0,83556.0,0.3608]
[1741533747352,0.1964088,83565.0,83556.0,0.3608]
[1741533747862,0.1954088,83565.0,83556.0,0.3608]
[1741533748163,0.1954088,83565.0,83564.0,0.0021794]
[1741533748755,0.1954088,83565.0,83564.0,0.0041794]
[1741533749158,0.2281088,83565.0,83564.0,0.0041794]
[1741533749459,0.26466363,83565.0,83564.0,0.0041794]
[1741533750063,0.15297483,83565.0,83564.0,0.0041794]
[1741533750262,0.15297483,83565.0,83564.0,0.1238696]
[1741533750263,0.27266363,83565.0,83564.0,0.1238696]
[1741533750462,0.15834363,83565.0,83564.0,0.1238696]
[1741533750664,0.15834363,83565.0,83564.0,0.0041794]
[1741533750855,0.15834363,83565.0,83564.0,0.0372794]
[1741533751360,0.15834363,83565.0,83564.0,0.1569696]
[1741533751566,3e-08,83565.0,83564.0,0.8593696]
[1741533751767,3e-08,83565.0,83564.0,0.8910696]
[1741533752268,3e-08,83565.0,83564.0,0.75204576]
[1741533753563,0.0096095,83565.0,83564.0,0.75204576]
[1741533754166,0.0317,83582.0,83580.0,0.1196673]
[1741533754366,0.0319,83590.0,83580.0,0.5641873]
[1741533754567,0.0308,83589.0,83580.0,0.5641873]
[1741533754758,0.1198453,83581.0,83580.0,0.5641873]
[1741533755070,0.0001794,83581.0,83580.0,0.5960873]
[1741533755257,0.0598159,83605.0,83580.0,0.5960873]
[1741533755258,0.00179534,83599.0,83598.0,0.1196416]
[1741533755460,0.00179534,83599.0,83598.0,0.5641616]
[1741533755958,0.00179534,83599.0,83598.0,0.9884616]
[1741533756169,0.0629,83616.0,83615.0,0.1196172]
[1741533756355,0.1825158,83616.0,83615.0,0.5641372]
[1741533756560,0.1825158,83616.0,83615.0,0.2033372]
[1741533757167,0.0308,83616.0,83615.0,0.2033372]
[1741533758162,0.01123269,83617.0,83616.0,0.1196158]
[1741533758354,9.003e-05,83619.0,83618.0,0.119613]
[1741533758768,0.0306,83634.0,83618.0,0.269613]
[1741533758955,0.0306,83634.0,83623.0,0.4804058]
[1741533759160,0.0306,83634.0,83623.0,0.5641258]
[1741533759669,0.12713385,83647.0,83646.0,0.1195729]
[1741533760066,0.24670535,83647.0,83646.0,0.1195729]
[1741533760567,0.24670535,83647.0,83646.0,0.1832729]
[1741533761068,0.1195715,83647.0,83646.0,0.1832729]
[1741533762168,0.0597817,83653.0,83652.0,0.1195615]
[1741533762575,0.00011754,83655.0,83654.0,0.1195615]
[1741533762870,0.15137754,83655.0,83654.0,0.1195615]
[1741533763366,0.03181754,83655.0,83653.0,0.0312]
[1741533763561,0.1523615,83654.0,83653.0,0.0312]
[1741533764873,0.1523615,83654.0,83653.0,0.1507629]
[1741533765170,0.1523615,83654.0,83653.0,0.0312]
[1741533765568,0.1523615,83654.0,83651.0,0.08368]
[1741533765569,0.1195643,83652.0,83651.0,0.08368]
[1741533765871,0.1195715,83647.0,83646.0,0.0324]
[1741533766477,0.0316,83648.0,83634.0,0.3608]
[1741533766768,0.0949,83646.0,83628.0,0.08368]
[1741533766961,0.1195888,83636.0,83635.0,0.1195856]
[1741533767673,0.0597922,83638.0,83634.0,0.0628]
[1741533767674,0.1195886,83635.0,83634.0,0.0628]
[1741533768173,0.1195886,83635.0,83634.0,0.1823901]
[1741533768174,0.12550965,83635.0,83634.0,0.1823901]
[1741533768769,0.12450965,83635.0,83634.0,0.1823901]
[1741533769365,0.12450965,83635.0,83634.0,0.2660701]
[1741533771363,0.12450965,83635.0,83634.0,0.14648]
[1741533772059,0.12450965,83635.0,83634.0,0.0327]
[1741533772264,0.12450965,83635.0,83627.0,0.0001794]
[1741533772265,0.1195986,83628.0,83627.0,0.0001794]
[1741533772464,0.4803986,83628.0,83627.0,0.0001794]
[1741533772866,0.48631965,83628.0,83627.0,0.0001794]
[1741533773169,0.54921965,83628.0,83627.0,0.0001794]
[1741533773366,0.54921965,83628.0,83612.0,0.00179387]
[1741533773568,0.119623,83611.0,83610.0,0.3608]
[1741533773773,0.08364,83611.0,83610.0,0.3074334]
[1741533773975,0.1196387,83600.0,83599.0,0.0333]
[1741533774273,0.12555975,83600.0,83599.0,0.0333]
[1741533775175,0.03832105,83600.0,83599.0,0.1529401]
[1741533775476,0.15795975,83600.0,83599.0,0.1529401]
[1741533775966,0.15995975,83600.0,83599.0,0.1529401]
[1741533776168,0.15995975,83600.0,83599.0,0.0333]
[1741533776774,0.15995975,83600.0,83599.0,0.1529401]
[1741533777275,0.15995975,83600.0,83599.0,0.0333]
[1741533777585,0.119643,83597.0,83596.0,0.36152]
[1741533777870,0.119643,83597.0,83596.0,0.3608]
[1741533778072,0.12556405,83597.0,83596.0,0.3608]
[1741533778778,0.1196502,83592.0,83591.0,0.0001794]
[1741533779167,0.1186502,83592.0,83591.0,0.0001794]
[1741533779562,0.1508502,83592.0,83591.0,0.0001794]
[1741533779778,0.1508502,83592.0,83591.0,0.119831]
[1741533779976,0.15877125,83592.0,83591.0,0.119831]
[1741533780673,0.15977125,83592.0,83591.0,0.119831]
[1741533780878,0.00892105,83592.0,83591.0,0.203511]
[1741533781275,0.00892105,83592.0,83591.0,0.267611]
[1741533782170,0.0598075,83617.0,83591.0,0.1479594]
[1741533782479,0.1196176,83615.0,83607.0,0.4804287]
[1741533782672,0.1196176,83615.0,83607.0,0.5641087]
[1741533783174,0.0317,83616.0,83607.0,0.5641087]
[1741533783175,0.1198067,83608.0,83607.0,0.5641087]
[1741533783478,0.1198067,83608.0,83607.0,0.51118]
[1741533784469,0.1198067,83608.0,83607.0,0.6308087]
[1741533785364,0.0001794,83608.0,83607.0,0.6308087]
[1741533785777,0.12140791,83618.0,83617.0,0.1196144]
[1741533785977,0.12140791,83618.0,83617.0,0.2032944]
[1741533786478,0.12140791,83618.0,83617.0,0.2661944]
[1741533786673,0.00179491,83618.0,83617.0,0.2661944]
[1741533787672,0.1197829,83626.0,83625.0,0.1196029]
[1741533787870,0.1197829,83626.0,83625.0,0.5640829]
[1741533788272,0.1197829,83626.0,83625.0,0.6262829]
[1741533789982,0.1197829,83626.0,83625.0,0.3608]
[1741533790183,0.1196101,83620.0,83619.0,0.0314]
[1741533790382,0.1196101,83620.0,83619.0,0.1510115]
[1741533790583,0.1196101,83620.0,83619.0,0.1818115]
[1741533791572,0.1196101,83620.0,83619.0,0.0622]
[1741533791776,0.1514101,83620.0,83619.0,0.0622]
[1741533792385,0.1514101,83620.0,83619.0,0.1818115]
[1741533792386,0.0318,83620.0,83619.0,0.1818115]
[1741533792686,0.0031794,83626.0,83625.0,0.1196029]
[1741533792687,0.1227815,83626.0,83625.0,0.1196029]
[1741533792882,0.1196029,83625.0,83624.0,0.0327]
[1741533793184,0.1848029,83625.0,83624.0,0.0327]
[1741533793486,0.1196029,83625.0,83624.0,0.1523044]
[1741533793686,0.1514029,83625.0,83624.0,0.1523044]
[1741533793988,0.1514029,83625.0,83624.0,0.1851044]
[1741533794284,0.1514029,83625.0,83624.0,0.0655]
[1741533794678,0.1514029,83625.0,83624.0,0.1851044]
[1741533795280,0.0001794,83626.0,83624.0,0.1851044]
[1741533795480,0.0001794,83626.0,83625.0,0.1196029]
[1741533795787,0.0001794,83626.0,83625.0,0.1850029]
[1741533795989,0.1197809,83626.0,83625.0,0.1850029]
[1741533796188,0.1197809,83626.0,83625.0,0.0654]
[1741533796785,0.1536809,83626.0,83625.0,0.0654]
[1741533797186,0.16502176,83626.0,83625.0,0.0654]
[1741533797386,0.1536809,83626.0,83625.0,0.0654]
[1741533798089,0.1556809,83626.0,83625.0,0.0654]
[1741533799085,0.0021794,83626.0,83625.0,0.1850029]
[1741533801091,0.1217809,83626.0,83625.0,0.1850029]
[1741533801287,0.0021794,83626.0,83625.0,0.1850029]
[1741533801684,0.1217809,83626.0,83625.0,0.1850029]
[1741533802593,0.0021794,83626.0,83625.0,0.1850029]
[1741533802989,0.0031794,83626.0,83625.0,0.1850029]
[1741533804696,0.0031794,83626.0,83625.0,0.0323]
[1741533804991,0.1550809,83626.0,83625.0,0.0323]
[1741533805489,0.0031794,83626.0,83625.0,0.0323]
[1741533805798,0.0031794,83626.0,83625.0,0.1519029]
[1741533806094,0.0031794,83626.0,83625.0,0.1852029]
[1741533808897,0.0031794,83626.0,83625.0,0.0323]
[1741533808898,0.1227809,83626.0,83625.0,0.0323]
[1741533809091,0.1196144,83617.0,83616.0,0.3608]
[1741533809293,0.1196144,83617.0,83605.0,0.00179407]
[1741533809294,0.119623,83611.0,83610.0,0.0336]
[1741533809598,0.12531411,83611.0,83610.0,0.0336]
[1741533809898,0.00569111,83611.0,83610.0,0.0681]
[1741533810094,0.00569111,83611.0,83609.0,0.0001794]
[1741533810295,0.1865244,83610.0,83609.0,0.0001794]
[1741533810496,0.4277,83610.0,83605.0,0.00179407]
[1741533810801,0.4277,83610.0,83605.0,0.00041148]
[1741533810802,0.1166301,83606.0,83605.0,0.00041148]
[1741533812204,0.1136301,83606.0,83605.0,0.00041148]
[1741533813006,0.1972701,83606.0,83605.0,0.00041148]
[1741533813502,0.1972701,83606.0,83597.0,0.0001794]
[1741533813503,0.08364,83606.0,83597.0,0.0001794]
[1741533813699,0.1196416,83598.0,83597.0,0.0001794]
[1741533814299,0.1884416,83598.0,83597.0,0.0001794]
[1741533815604,0.1884416,83598.0,83597.0,0.0011794]
[1741533819907,0.5492416,83598.0,83597.0,0.0011794]
[1741533820812,0.55492318,83598.0,83597.0,0.0011794]
[1741533821618,0.1196745,83575.0,83574.0,0.3111544]
[1741533821801,0.1196745,83575.0,83574.0,0.2033144]
[1741533822007,0.12535608,83575.0,83574.0,0.2033144]
[1741533822212,0.12535608,83575.0,83574.0,0.2380144]
[1741533822827,0.12535608,83575.0,83574.0,0.15154]
[1741533823731,0.12535608,83575.0,83574.0,0.0679]
[1741533824428,0.12535608,83575.0,83574.0,0.1875759]
[1741533824629,0.00568158,83575.0,83574.0,0.1875759]
[1741533825031,0.12535318,83577.0,83576.0,0.1196731]
[1741533825721,0.1196716,83577.0,83576.0,0.1196731]
[1741533827730,0.12542094,83577.0,83576.0,0.1196731]
[1741533827925,0.00574934,83577.0,83576.0,0.1196731]
[1741533829821,0.00574934,83577.0,83576.0,0.13097926]
[1741533830020,0.00574934,83577.0,83576.0,0.21461926]
[1741533831338,0.00574934,83577.0,83576.0,0.21861926]
[1741533831528,0.12542094,83577.0,83576.0,0.21861926]
[1741533831724,0.12542094,83577.0,83576.0,0.2073131]
[1741533832032,0.12542094,83577.0,83576.0,0.2083131]
[1741533834333,0.12542094,83577.0,83576.0,0.1246731]
[1741533834629,0.12542094,83577.0,83576.0,0.002]
[1741533834828,0.58147572,83577.0,83576.0,0.002]
[1741533835028,0.64817572,83577.0,83576.0,0.002]
[1741533835632,0.28737572,83577.0,83576.0,0.002]
[1741533836041,0.28737572,83577.0,83576.0,0.005]
[1741533836535,0.28737572,83577.0,83576.0,0.00064487]
[1741533838139,0.28737572,83577.0,83567.0,0.3608]
[1741533838140,0.1196802,83571.0,83567.0,0.3608]
[1741533838434,0.1196845,83568.0,83567.0,0.3608]
[1741533839044,0.12543384,83568.0,83567.0,0.3608]
[1741533839640,0.00574934,83568.0,83567.0,0.564126]
[1741533839940,0.00574934,83568.0,83567.0,0.666826]
[1741533840134,0.00674934,83568.0,83567.0,0.666826]
[1741533840931,0.0001794,83583.0,83581.0,0.1196659]
[1741533841130,0.0001794,83583.0,83581.0,0.9249459]
[1741533841131,0.19500584,83582.0,83581.0,0.9249459]
[1741533841330,0.00179521,83599.0,83581.0,0.9249459]
[1741533841331,0.00179521,83599.0,83592.0,0.0598249]
[1741533841632,0.00179521,83599.0,83584.0,0.0598308]
[1741533841633,0.00179521,83599.0,83597.0,0.3608]
[1741533841836,0.00179521,83599.0,83588.0,0.0598273]
[1741533841837,0.0598222,83596.0,83595.0,0.08368]
[1741533842032,0.1794666,83596.0,83595.0,0.08368]
[1741533842239,0.0334,83596.0,83595.0,0.2033259]
[1741533842636,0.1530444,83596.0,83595.0,0.08368]
[1741533843638,0.00179521,83599.0,83596.0,0.179466]
[1741533843842,0.00179521,83599.0,83598.0,0.1196416]
[1741533846136,0.12143531,83599.0,83598.0,0.1196416]
[1741533847228,0.00179521,83599.0,83598.0,0.1196416]
[1741533847633,0.0001794,83604.0,83603.0,0.1196344]
[1741533847835,0.0001794,83604.0,83603.0,0.5640744]
[1741533848840,0.0354,83617.0,83603.0,0.5640744]
[1741533848841,0.36140001,83630.0,83614.0,0.0598091]
[1741533849044,0.2148233,83617.0,83616.0,0.1196126]
[1741533849243,0.0952075,83617.0,83615.0,0.11864]
[1741533849445,0.1541158,83616.0,83615.0,0.11864]
[1741533849742,0.1541158,83616.0,83615.0,0.2382572]
[1741533849942,0.1865158,83616.0,83615.0,0.2382572]
[1741533851034,0.1865158,83616.0,83615.0,0.08364]
[1741533851236,0.1196273,83608.0,83607.0,0.1198047]
[1741533851438,0.1196273,83608.0,83607.0,0.3230707]
[1741533852040,0.1865273,83608.0,83607.0,0.0001794]
[1741533852241,0.1865273,83608.0,83607.0,0.1198081]
[1741533853044,0.19232541,83608.0,83607.0,0.1198081]
[1741533853239,0.07269811,83608.0,83607.0,0.1198081]
[1741533853837,0.19232541,83608.0,83607.0,0.1198081]
[1741533854346,0.19332541,83608.0,83607.0,0.1198081]
[1741533854938,0.19332541,83608.0,83607.0,0.0001794]
[1741533855638,0.19232541,83608.0,83607.0,0.0001794]
[1741533855834,0.19332541,83608.0,83607.0,0.0001794]
[1741533857451,0.19332541,83608.0,83607.0,0.1198081]
[1741533857746,0.19332541,83608.0,83607.0,0.0001794]
[1741533857950,0.19232541,83608.0,83607.0,0.0001794]
[1741533858148,0.19432541,83608.0,83607.0,0.0001794]
[1741533858741,0.19432541,83608.0,83593.0,0.0836]
[1741533858742,0.0598191,83601.0,83593.0,0.0836]
[1741533858943,0.1196459,83595.0,83587.0,0.1522567]
[1741533859141,0.1196516,83591.0,83590.0,0.0836]
[1741533859345,0.12544971,83591.0,83590.0,0.203253]
[1741533860846,0.12544971,83591.0,83590.0,0.238053]
[1741533861348,0.12544971,83591.0,83590.0,0.598853]
[1741533863148,0.12644971,83591.0,83590.0,0.598853]
[1741533863861,0.00679811,83591.0,83590.0,0.598853]
[1741533864246,0.12644971,83591.0,83590.0,0.598853]
[1741533864447,0.16194971,83591.0,83590.0,0.598853]
[1741533866351,0.16094971,83591.0,83590.0,0.599853]
[1741533869346,0.16094971,83591.0,83590.0,0.61102705]
[1741533869754,0.16094971,83591.0,83590.0,0.598853]
[1741533870541,0.16094971,83591.0,83590.0,0.600853]
[1741533871555,0.04129811,83591.0,83590.0,0.600853]
[1741533871760,0.0001794,83599.0,83598.0,0.1196416]
[1741533872058,0.119622,83612.0,83605.0,0.1196316]
[1741533872254,0.119625,83610.0,83605.0,0.5640316]
[1741533872655,0.0357,83613.0,83605.0,0.5640316]
[1741533872855,0.0598143,83608.0,83605.0,0.5640316]
[1741533873059,0.33275779,83606.0,83605.0,0.5640316]
[1741533873650,0.40235779,83606.0,83605.0,0.4804316]
[1741533873849,0.1892301,83606.0,83605.0,0.4804316]
[1741533874650,0.1922301,83606.0,83605.0,0.4804316]
[1741533876151,0.003,83606.0,83605.0,0.4804316]
[1741533876957,0.005,83606.0,83605.0,0.4804316]
[1741533877957,0.1246301,83606.0,83605.0,0.4804316]
[1741533879565,0.1246301,83606.0,83605.0,0.3608]
[1741533879763,0.1196401,83599.0,83598.0,0.36991022]
[1741533879954,0.1196401,83599.0,83598.0,0.3608]
[1741533880658,0.1905401,83599.0,83598.0,0.3608]
[1741533881766,0.1905401,83599.0,83598.0,0.32338139]
[1741533882157,0.1905401,83599.0,83598.0,0.44302299]
[1741533882361,0.1915401,83599.0,83598.0,0.44302299]
[1741533882753,0.1915401,83599.0,83598.0,0.32338139]
[1741533883158,0.20322854,83599.0,83598.0,0.32338139]
[1741533883759,0.1196459,83595.0,83594.0,0.0358]
[1741533884272,0.1254664,83595.0,83594.0,0.0358]
[1741533884760,0.119653,83590.0,83589.0,0.00072]
[1741533884963,0.119653,83590.0,83581.0,0.29798459]
[1741533884964,0.119663,83583.0,83581.0,0.21438459]
[1741533885267,0.119663,83583.0,83581.0,0.14366025]
[1741533885268,0.1196645,83582.0,83581.0,0.14366025]
[1741533885458,0.2254645,83582.0,83581.0,0.14366025]
[1741533886066,0.231285,83582.0,83581.0,0.14366025]
[1741533886376,0.0598367,83576.0,83573.0,0.0001794]
[1741533886562,0.1196759,83574.0,83573.0,0.0001794]
[1741533886767,0.1254964,83574.0,83573.0,0.0342794]
[1741533886967,0.1947964,83574.0,83573.0,0.0342794]
[1741533887167,0.20614604,83574.0,83573.0,0.0342794]
[1741533888367,0.20514604,83574.0,83573.0,0.0342794]
[1741533889859,0.20514604,83574.0,83573.0,0.0693794]
[1741533890266,0.35842974,83575.0,83573.0,0.0693794]
[1741533890466,0.1206759,83574.0,83573.0,0.0693794]
[1741533890868,0.13187232,83574.0,83573.0,0.0693794]
[1741533891271,0.13187232,83574.0,83573.0,0.1890568]
[1741533891469,0.13187232,83574.0,83573.0,0.0693794]
[1741533891667,0.30992469,83574.0,83573.0,0.0693794]
[1741533891867,0.31192469,83574.0,83573.0,0.0693794]
[1741533892958,0.19224879,83574.0,83545.0,0.1197173]
[1741533893166,0.1197017,83556.0,83555.0,0.0345]
[1741533894073,0.1552017,83556.0,83555.0,0.0345]
[1741533894264,0.3963,83556.0,83544.0,0.0357]
[1741533894464,0.1197117,83549.0,83548.0,0.0345]
[1741533894665,0.1197132,83548.0,83532.0,0.0357]
[1741533894865,0.1056,83548.0,83531.0,0.28579621]
[1741533895169,0.1056,83548.0,83532.0,0.0373]
[1741533895367,0.1197347,83533.0,83532.0,0.0373]
[1741533895772,0.13130797,83533.0,83532.0,0.0373]
[1741533896165,0.1197347,83533.0,83532.0,0.1570361]
[1741533896370,0.1197347,83533.0,83532.0,0.1926361]
[1741533896568,0.1127347,83533.0,83532.0,0.1926361]
[1741533897070,0.13120402,83535.0,83534.0,0.1197332]
[1741533898272,0.0738,83540.0,83532.0,0.0729]
[1741533898577,0.11990271,83541.0,83540.0,0.1197246]
[1741533898973,0.11990271,83541.0,83540.0,0.0693]
[1741533899278,0.1197332,83534.0,83533.0,0.08364]
[1741533899473,0.4805332,83534.0,83533.0,0.0346]
[1741533899975,0.1177461,83525.0,83524.0,0.00017951]
[1741533900773,0.1534461,83525.0,83524.0,0.00017951]
[1741533901281,0.1534461,83525.0,83505.0,0.0598872]
[1741533901282,0.1197691,83509.0,83508.0,0.44444]
[1741533901481,0.08364,83517.0,83508.0,0.3608]
[1741533901677,0.2632799,83517.0,83516.0,0.119759]
[1741533901877,0.2632799,83517.0,83508.0,0.3608]
[1741533901878,0.08364,83525.0,83524.0,0.1197476]
[1741533902181,0.08364,83534.0,83533.0,0.1197347]
[1741533902680,0.08364,83539.0,83535.0,0.1197297]
[1741533902882,0.08364,83539.0,83526.0,0.1435123]
[1741533902883,0.1795933,83537.0,83536.0,0.0734]
[1741533903382,0.2535933,83537.0,83536.0,0.0734]
[1741533904170,0.2535933,83537.0,83536.0,0.1931304]
[1741533904171,0.074,83537.0,83536.0,0.1931304]
[1741533904370,0.08364,83539.0,83538.0,0.1197275]
[1741533904578,0.1197261,83539.0,83538.0,0.1197275]
[1741533904782,0.1197261,83539.0,83536.0,0.1332645]
[1741533904990,0.1197289,83537.0,83536.0,0.1332645]
[1741533905480,0.1197289,83537.0,83536.0,0.0734]
[1741533905675,0.1197261,83539.0,83538.0,0.0598631]
[1741533905871,0.1197289,83537.0,83536.0,0.0734]
[1741533906175,0.30613464,83537.0,83522.0,0.00068]
[1741533906376,0.1197791,83502.0,83501.0,0.0376]
[1741533906882,0.1197791,83502.0,83501.0,0.0756]
[1741533907183,0.08364,83507.0,83502.0,0.0598895]
[1741533907386,0.1197777,83503.0,83502.0,0.0598895]
[1741533907579,0.08364,83507.0,83502.0,0.0363]
[1741533907785,0.1197777,83503.0,83502.0,0.5168779]
[1741533908089,0.08364,83507.0,83502.0,0.5168779]
[1741533908289,0.00017962,83513.0,83502.0,0.5168779]
[1741533908290,0.0598824,83512.0,83509.0,0.1197679]
[1741533908580,0.1197662,83511.0,83510.0,0.0363]
[1741533908779,0.11994362,83513.0,83512.0,0.1197648]
[1741533908978,0.00017962,83513.0,83512.0,0.2034048]
[1741533909782,0.11994292,83513.0,83512.0,0.2034048]
[1741533909984,0.11994292,83513.0,83512.0,0.08364]
[1741533910281,0.11994292,83513.0,83512.0,0.2034048]
[1741533910988,0.11994292,83513.0,83512.0,0.08364]
[1741533911180,0.1197662,83511.0,83510.0,0.0363]
[1741533911380,0.1197806,83501.0,83500.0,0.18364]
[1741533912187,0.1197806,83501.0,83500.0,0.303422]
[1741533912582,0.1197806,83501.0,83500.0,0.18364]
[1741533913690,0.1917806,83501.0,83500.0,0.1]
[1741533913882,0.5525806,83501.0,83500.0,0.07855001]
[1741533914082,0.5525806,83501.0,83478.0,0.08364]
[1741533914083,0.0598919,83499.0,83478.0,0.08364]
[1741533914285,0.1198099,83482.0,83481.0,0.0599037]
[1741533914585,0.15564,83498.0,83488.0,0.1197992]
[1741533914586,0.08364,83489.0,83488.0,0.1197992]
[1741533914786,0.1197978,83489.0,83488.0,0.1197983]
[1741533915091,0.1198006,83487.0,83486.0,0.3614]
[1741533915287,0.1198121,83479.0,83478.0,0.2034506]
[1741533915487,0.0348,83488.0,83478.0,0.08364]
[1741533915795,0.1797072,83486.0,83485.0,0.1198017]
[1741533916084,0.00017962,83490.0,83489.0,0.1197978]
[1741533916881,0.00017962,83490.0,83483.0,0.0006]
[1741533916882,0.1198049,83484.0,83483.0,0.0006]
[1741533917087,0.1198365,83462.0,83456.0,0.28579621]
[1741533917294,0.1198365,83462.0,83460.0,0.1198389]
[1741533917492,0.1198365,83463.0,83462.0,0.0599176]
[1741533917692,0.1198581,83447.0,83439.0,0.3608]
[1741533917886,0.07249464,83463.0,83439.0,0.3608]
[1741533917887,0.0599269,83450.0,83439.0,0.3608]
[1741533918086,0.1198581,83447.0,83439.0,0.3608]
[1741533918592,0.13114641,83447.0,83438.0,0.35758962]
[1741533918893,0.39932,83452.0,83450.0,0.1198532]
[1741533919088,0.3984,83452.0,83442.0,0.3608]
[1741533919393,0.1198555,83449.0,83448.0,0.1198566]
[1741533919587,0.0376,83452.0,83447.0,0.0354]
[1741533919789,0.0376,83452.0,83451.0,0.1198523]
[1741533919991,0.1574509,83452.0,83451.0,0.1198523]
[1741533920290,0.2516815,83458.0,83447.0,0.0953289]
[1741533920291,0.059917,83464.0,83450.0,0.0599266]
[1741533920492,0.08368,83466.0,83462.0,0.1198365]
[1741533920691,0.0364,83469.0,83465.0,0.1198322]
[1741533920897,0.00017962,83470.0,83469.0,0.1198265]
[1741533921194,0.00017962,83470.0,83469.0,0.1552265]
[1741533921996,0.00017962,83470.0,83469.0,0.2389065]
[1741533922783,0.00096001,83476.0,83475.0,0.1198179]
[1741533922998,0.00179766,83486.0,83485.0,0.1198035]
[1741533923196,0.00179766,83486.0,83485.0,0.44448]
[1741533923397,0.12159976,83486.0,83485.0,0.5642835]
[1741533923601,0.00179766,83486.0,83485.0,0.5642835]
[1741533924097,0.00179766,83486.0,83485.0,0.2034835]
[1741533924995,0.12159976,83486.0,83485.0,0.08368]
[1741533925189,0.1198035,83485.0,83484.0,0.035]
[1741533925390,0.1943035,83485.0,83484.0,0.035]
[1741533925589,0.15818,83485.0,83477.0,0.00017974]
[1741533925797,0.1198136,83478.0,83477.0,0.00017974]
[1741533925996,0.4806136,83478.0,83477.0,0.00017974]
[1741533926187,0.1198136,83478.0,83477.0,0.00017974]
[1741533926681,0.1560136,83478.0,83477.0,0.11999474]
[1741533926886,0.1560136,83478.0,83477.0,0.00017974]
[1741533927586,0.1943136,83478.0,83477.0,0.00017974]
[1741533928691,0.1198351,83463.0,83462.0,0.28579621]
[1741533929095,0.1198351,83463.0,83462.0,0.40563271]
[1741533929592,0.1552351,83463.0,83462.0,0.1198365]
[1741533929797,0.1552351,83463.0,83461.0,0.3991]
[1741533929798,0.0354,83463.0,83461.0,0.3991]
[1741533929994,0.0354,83463.0,83461.0,0.0383]
[1741533929995,0.1198365,83462.0,83461.0,0.0383]
[1741533930598,0.1198365,83462.0,83461.0,0.158138]
[1741533930991,0.1198365,83462.0,83461.0,0.0383]
[1741533931193,0.1198394,83460.0,83459.0,0.0379]
[1741533931701,0.1198394,83460.0,83459.0,0.1577408]
[1741533931900,0.0374,83461.0,83459.0,0.0379]
[1741533932199,0.002,83462.0,83461.0,0.119838]
[1741533932398,0.002,83462.0,83460.0,0.43674]
[1741533932399,0.001,83462.0,83460.0,0.43674]
[1741533932698,0.001,83462.0,83461.0,0.2182569]
[1741533932896,0.1208365,83462.0,83461.0,0.0771]
[1741533933401,0.1208365,83462.0,83461.0,0.196938]
[1741533933596,0.1208365,83462.0,83461.0,0.0771]
[1741533934104,0.1208365,83462.0,83461.0,0.0385]
[1741533934602,0.1582365,83462.0,83461.0,0.0761]
[1741533935006,0.1572365,83462.0,83461.0,0.0761]
[1741533935301,0.0599066,83479.0,83470.0,0.119825]
[1741533935492,0.0374,83473.0,83470.0,0.119825]
[1741533935801,0.48080334,83471.0,83470.0,0.119825]
[1741533935998,0.1198265,83469.0,83468.0,0.0759]
[1741533936505,0.1198265,83469.0,83468.0,0.1957279]
[1741533936702,0.1198265,83469.0,83468.0,0.0759]
[1741533936897,0.1572265,83469.0,83468.0,0.0759]
[1741533937102,0.1945265,83469.0,83468.0,0.0759]
[1741533937405,0.1945265,83469.0,83468.0,0.0383]
[1741533938807,0.48080454,83471.0,83468.0,0.0383]
[1741533939002,0.48080454,83471.0,83470.0,0.119825]
[1741533939305,0.119825,83470.0,83469.0,0.1548255]
[1741533939499,0.119825,83470.0,83469.0,0.035]
[1741533939700,0.11942,83470.0,83457.0,0.08372]
[1741533939907,0.1198423,83458.0,83457.0,0.203563]
[1741533940094,0.1198423,83458.0,83457.0,0.08372]
[1741533940295,0.1198437,83457.0,83456.0,0.2385651]
[1741533940906,0.0599211,83459.0,83458.0,0.1198423]
[1741533941405,0.0357,83463.0,83456.0,0.1786423]
[1741533941598,0.0599154,83467.0,83466.0,0.1198308]
[1741533941904,0.1198337,83465.0,83464.0,0.1198329]
[1741533942399,0.0351,83465.0,83464.0,0.1198329]
[1741533942592,0.0351,83465.0,83460.0,0.0599191]
[1741533942593,0.003,83469.0,83456.0,0.08372]
[1741533942795,0.1797573,83463.0,83462.0,0.1198302]
[1741533944405,0.0381,83469.0,83467.0,0.1198279]
[1741533944606,0.003,83469.0,83468.0,0.1198279]
[1741533944802,0.003,83469.0,83466.0,0.08372]
[1741533944803,0.1198293,83467.0,83466.0,0.08372]
[1741533945499,0.1198337,83464.0,83463.0,0.3608]
[1741533945911,0.1198394,83460.0,83459.0,0.08372]
[1741533946296,0.0983175,83463.0,83455.0,0.0381]
[1741533946297,0.1198451,83456.0,83455.0,0.0381]
[1741533947004,0.1198451,83456.0,83453.0,0.44516]
[1741533947005,0.119848,83454.0,83453.0,0.44516]
[1741533947206,0.119848,83454.0,83453.0,0.08372]
[1741533947803,0.13128778,83454.0,83453.0,0.08372]
[1741533947998,0.13128778,83454.0,83453.0,0.2035694]
[1741533948811,0.13128778,83454.0,83453.0,0.08372]
[1741533948997,0.119848,83454.0,83453.0,0.2035694]
[1741533949806,0.0599218,83458.0,83453.0,0.08372]
[1741533950007,0.09268965,83474.0,83454.0,0.0599237]
[1741533950203,0.119848,83454.0,83453.0,0.08372]
[1741533950803,0.119848,83454.0,83453.0,0.2402694]
[1741533951007,0.119848,83454.0,83453.0,0.12042]
[1741533951611,0.119848,83454.0,83453.0,0.2402694]
[1741533951999,0.11870905,84104.0,83453.0,0.12042]
[1741533952201,0.1228317,83467.0,83466.0,0.1198308]
[1741533952407,0.1198317,83467.0,83466.0,0.1198308]
[1741533952910,0.1198317,83467.0,83466.0,0.1573308]
[1741533953109,0.1198317,83467.0,83466.0,0.0375]
[1741533954601,0.1571317,83467.0,83466.0,0.0375]
[1741533955909,0.1571317,83467.0,83466.0,0.1573308]
[1741533956209,0.1198317,83467.0,83466.0,0.1573308]
[1741533956509,0.1198317,83467.0,83466.0,0.0375]
[1741533956911,0.1576317,83467.0,83466.0,0.0375]
[1741533957807,0.1925317,83467.0,83466.0,0.0375]
[1741533959314,0.1576317,83467.0,83466.0,0.1573308]
[1741533959514,0.01437895,83468.0,83466.0,0.1573308]
[1741533959711,0.1198279,83468.0,83467.0,0.0349]
[1741533960116,0.48140615,83471.0,83470.0,0.119825]
[1741533960422,0.48080614,83471.0,83470.0,0.119825]